Cogmind - Beta 10.2 @@@ ROGUE MODE // 2021.02.11 @ 18:05:41 Player: Demise Result: Destroyed by G-34 Mercenary with Small Laser Performance ------------- Evolutions (0) 0 Regions Visited (1) 200 Robots Destroyed (23) 115 Value Destroyed (560) 560 Prototype IDs (0) 0 Alien Tech Used (0) 0 Bonus (0) 0 TOTAL SCORE: 875 Bonus ------- None Cogmind --------- Core Integrity 0/250 Matter 300/300 Energy 250/250 System Corruption 0% Temperature Cool (6) Movement Core (400) Ox7 Location -10/Materials Parts ------- > --- POWER (1) -------- Ion Engine > --- PROPULSION (2) --- (None) > --- UTILITY (2) ------ Large Storage Unit Signal Interpreter > --- WEAPON (2) ------- Light Cannon > --- INVENTORY (10) --- Ion Engine Ion Engine Large Storage Unit Power Shielding Hacking Suite Datajack Mining Laser Peak State ------------ > --- POWER ------------ (None) > --- PROPULSION ------- Light Treads Light Treads > --- UTILITY ---------- Improved Heat Sink Signal Interpreter > --- WEAPON ----------- Medium Laser Light Assault Rifle > --- INVENTORY -------- Ion Engine Small Storage Unit EM Pulse Gun Mining Laser [Rating: 8] Favorites ----------- Power Ion Engine Engine Ion Engine Propulsion Light Treads Treads Light Treads Utility Signal Interpreter Device Improved Heat Sink Storage Large Storage Unit Processor Signal Interpreter Weapon EM Pulse Gun Energy Gun EM Pulse Gun Ballistic Gun Light Assault Rifle Ballistic Cannon Light Cannon Build | -11 -10 ------- Run | Scr Mat Slots Evolved . | . . Power . | . . Propulsion . | . . Utility . | . . Weapon . | . . Parts Attached 20 | 4 16 Power 3 | . 3 Engine 3 | . 3 Core . | . . Reactor . | . . Propulsion 4 | 2 2 Treads 4 | 2 2 Leg . | . . Wheel . | . . Hover . | . . Flight . | . . Utility 4 | . 4 Device 1 | . 1 Storage 2 | . 2 Processor 1 | . 1 Hackware . | . . Protection . | . . Artifact . | . . Weapon 9 | 2 7 Energy Gun 6 | 1 5 Energy Cannon . | . . Ballistic Gun 1 | 1 . Ballistic Cannon 2 | . 2 Launcher . | . . Special Weapon . | . . Impact Weapon . | . . Slashing Weapon . | . . Piercing Weapon . | . . Special Melee Weapon . | . . Unidentified Prototypes . | . . Parts Lost 9 | . 9 Power . | . . Propulsion 3 | . 3 Utility . | . . Weapon 6 | . 6 Highest Loss Streak 5 | . 5 Average Slot Usage (%) 88 | . 88 Engine 11 | . 11 Treads 27 | . 27 Storage 11 | . 11 Processor 12 | . 12 Energy Gun 17 | . 17 Ballistic Gun 5 | . 5 Naked Turns . | . . Heaviest Build 27 | 2 27 Greatest Support 40 | 20 40 Greatest Overweight (x) 8 | . 8 Average Overweight (x) . | . . Largest Inventory Capacity 10 | 4 10 Average Capacity 7 | 4 7 Most Carried 10 | 4 10 Average Carried 5 | 2 5 Final Capacity 10 | 4 10 Final Carried 7 | 4 7 Class Distribution -------------------- 100% | Mutant Dominant Class ---------------- Mutant | -10/Materials Resources | -11 -10 ----------- Run | Scr Mat Matter Collected 414 | 248 166 Remotely . | . . Salvage Created 1026 | 123 903 Parts 63 | 7 56 Haulers Intercepted 1 | . 1 Recyclers Shooed . | . . Parts Field Recycled . | . . Retrieved Matter . | . . Parts Self-Destructed . | . . Prevented . | . . Kills | -11 -10 ------- Run | Scr Mat Combat Hostiles Destroyed 14 | . 14 Guns 12 | . 12 Cannons 1 | . 1 AOE 1 | . 1 Classes Destroyed 7 | 2 5 Tunneler 2 | 2 . Hauler 1 | . 1 Recycler 3 | 1 2 Operator 1 | . 1 Watcher 2 | . 2 Swarmer 1 | . 1 Grunt 13 | . 13 Best Kill Streak 4 | 3 4 Combat Bots Only 3 | . 3 Max Kills in Single Turn 1 | 1 1 Gunslinging . | . . Exploded 1 | . 1 Melee . | . . Uniques/NPCs Destroyed . | . . Combat | -11 -10 -------- Run | Scr Mat Damage Taken 1322 | . 1322 Core 256 | . 256 Absorbed by Shields . | . . Core Remaining (%) 100 | 100 . Volleys Fired 85 | 8 77 Largest 2 | 2 2 Hottest 80 | 60 80 Shots Fired 135 | 16 119 Gun 134 | 16 118 Cannon 1 | . 1 Launcher . | . . Special . | . . Kinetic 33 | 8 25 Thermal 44 | 8 36 Explosive . | . . Electromagnetic 58 | . 58 Robot Hit Streak 16 | 5 16 Robot Miss Streak 5 | 3 5 Penetration Max . | . . Secondary Targets . | . . Shots Hit Robots 95 | 9 86 Core Hits 41 | 4 37 Critical Hits . | . . Critical Kills . | . . Critical Parts Destroyed . | . . Melee Attacks . | . . Impact . | . . Slashing . | . . Piercing . | . . Sneak Attacks . | . . Combat Hostiles . | . . Follow-up Attacks . | . . Damage Inflicted 1190 | 86 1104 Guns 1136 | 86 1050 Cannons 18 | . 18 Explosions 35 | . 35 Melee . | . . Ramming 1 | . 1 Kinetic 169 | 32 137 Thermal 380 | 54 326 Explosive . | . . Electromagnetic 640 | . 640 Impact . | . . Slashing . | . . Piercing . | . . Highest Corruption . | . . Average Corruption . | . . Corruption Purged . | . . Overload Shots . | . . Overflow Damage . | . . Projectiles . | . . Explosions . | . . Melee . | . . Knockbacks . | . . Impact . | . . Kinetic . | . . Secondary . | . . Self-Inflicted Damage . | . . Shots . | . . Rammed 1 | . 1 Targets Rammed 1 | . 1 Kicked . | . . Crushed . | . . Highest Temperature 229 | 20 229 Average Temperature 45 | 8 48 Received Heat Transfer 615 | . 615 Effects 2 | . 2 Interference 2 | . 2 Siege Activations . | . . Robots Corrupted . | . . Combat Hostiles . | . . Parts Fried 3 | . 3 Impact Corruptions . | . . Robots Melted . | . . Combat Hostiles . | . . Parts Melted 3 | . 3 Heat Transferred 906 | 125 781 Parts Sabotaged . | . . Parts Stolen . | . . Parts Stripped . | . . Power Chain Reactions 1 | . 1 Missiles Intercepted . | . . Alert | -11 -10 ------- Run | Scr Mat Peak Influence 195 | 15 195 Initial 9 | . 9 Average 76 | 3 81 Maximum Alert Level . | . . Low Security (%) 100 | 100 100 Level 1 . | . . Level 2 . | . . Level 3 . | . . Level 4 . | . . Level 5 . | . . High Security . | . . Max Security . | . . Squads Dispatched 6 | . 6 Investigation 4 | . 4 Extermination . | . . Reinforcement 2 | . 2 Assault . | . . Garrison . | . . Intercept . | . . Construction Impeded . | . . Haulers Reinforced . | . . Stealth | -11 -10 --------- Run | Scr Mat Distress Signals 2 | . 2 Communications Jammed . | . . Distress Signals . | . . Times Spotted 27 | . 27 Peak Tracking Total 8 | . 8 Tactical Retreats 3 | . 3 Traps | -11 -10 ------- Run | Scr Mat Traps Triggered 2 | . 2 Indirectly . | . . Trap Hack Attempts . | . . Triggered . | . . Disarmed . | . . Reprogrammed . | . . Reused . | . . Traps Extracted . | . . Installed . | . . Triggered . | . . Machines | -11 -10 ---------- Run | Scr Mat Machines Disabled . | . . Max in Single Turn . | . . Machines Sabotaged . | . . Garrisons Compromised . | . . Overloaded Fab Kills . | . . Fab Network Shutdowns . | . . Hacking | -11 -10 --------- Run | Scr Mat Machines Accessed 7 | . 7 Terminals 4 | . 4 Fabricators . | . . Repair Stations 1 | . 1 Recycling Units 2 | . 2 Scanalyzers . | . . Garrison Access . | . . Total Hacks 22 | . 22 Successful 8 | . 8 Failed 14 | . 14 Catastrophic 2 | . 2 Database Lockouts . | . . Manual 16 | . 16 Terminals 11 | . 11 Fabricators . | . . Repair Stations 4 | . 4 Recycling Units 7 | . 7 Scanalyzers . | . . Garrison Access . | . . Terminal Hacks . | . . Fabricator Hacks . | . . Repair Station Hacks 2 | . 2 Scan Component 1 | . 1 Repair 1 | . 1 Recycling Unit Hacks 2 | . 2 Retrieve Components 2 | . 2 Scanalyzer . | . . Garrison Access Hacks . | . . Unauthorized Hacks 4 | . 4 Terminals 1 | . 1 Botnet 1 | . 1 Fabricators . | . . Repair Stations . | . . Recycling Units 3 | . 3 Reject 1 | . 1 Mask 2 | . 2 Scanalyzers . | . . Garrison Access . | . . Data Cores Recovered . | . . Used . | . . Hacking Detections 7 | . 7 Full Trace Events 4 | . 4 Feedback Events . | . . Feedback Blocked . | . . Robot Schematics Acquired . | . . Robots Built . | . . Matter . | . . Time . | . . Total Robot Build Rating . | . . Part Schematics Acquired . | . . Parts Built . | . . Matter . | . . Time . | . . Total Part Build Rating . | . . Parts Repaired 1 | . 1 Time 26 | . 26 Parts Recycled . | . . Recycled Matter . | . . Retrieved Matter . | . . Retrieved Components 6 | . 6 Parts Scanalyzed . | . . Part Schematics Acquired . | . . Parts Damaged . | . . Bothacking | -11 -10 ------------ Run | Scr Mat Used RIF Installer . | . . Robots Hacked . | . . Non-combat . | . . Combat . | . . Robot Hacks Applied . | . . Relay Couplers Released . | . . Robots Rewired . | . . Allies Hacked . | . . Hacks Repelled . | . . Allies | -11 -10 -------- Run | Scr Mat Total Allies . | . . Largest Group . | . . Highest-Rated Group . | . . Highest-Rated Ally . | . . Total Orders . | . . Ally Attacks . | . . Total Damage . | . . Kills . | . . Allies Corrupted . | . . Allies Melted . | . . Intel | -11 -10 ------- Run | Scr Mat Robot Analysis Total . | . . Derelict Logs Recovered . | . . Drone Launches . | . . Drone Recoveries . | . . Exploration | -11 -10 ------------- Run | Scr Mat Turns Passed 984 | 57 927 Spaces Moved 539 | 36 503 Core 183 | 31 152 Treads 356 | 5 351 Legs . | . . Wheels . | . . Hover . | . . Flight . | . . Fastest Speed 50 | 50 50 Average Speed 124 | 65 129 Slowest Speed 450 | 160 450 Overloaded Moves . | . . Propulsion Burnouts . | . . Robots Hopped . | . . Cave-ins Triggered . | . . Exploration Rate (%) 38 | 4 73 Regions Visited 1 Branch Regions . Pre-discovered Areas . | . . Known Exits Taken . | . . Unknown Exits Taken 1 | 1 . Scrap Searched . | . . Spaces Dug . | . . Terrain Destroyed 4 | . 4 Melee . | . . Projectile . | . . AOE 4 | . 4 Terrain Rammed . | . . Walls Destroyed . | . . Machines Disabled . | . . Actions | -11 -10 --------- Run | Scr Mat Total 711 | 52 659 Wait 51 | 1 50 Move 538 | 35 503 Hop . | . . Pick Up 12 | 4 8 Fast Attach 10 | 4 6 Attach 6 | . 6 Detach . | . . Swap 4 | . 4 Drop 4 | . 4 Fire 85 | 8 77 Melee . | . . Ram 1 | . 1 Kick . | . . Crush . | . . Escape Stasis . | . . Rewire . | . . Trap . | . . Miscellaneous . | . . Route ------- -11/Scrapyard -10/Materials (discovered 5 exits: *Mat x3 / *Min x2) History --------- Turn | Location | Event 16 | -11/Scrapyard | Discovered new exit (range 15) 58 | -11/Scrapyard | Entered Materials 233 | -10/Materials | Discovered new exit (range 6) 239 | -10/Materials | Identified exit to Mines 304 | -10/Materials | Build established: Mutant 377 | -10/Materials | Discovered new exit (range 16) 400 | -10/Materials | Identified exit to Materials 556 | -10/Materials | Discovered exit to Mines (range 5) 779 | -10/Materials | Repaired EM Pulse Gun 787 | -10/Materials | Discovered exit to Materials (range 7) 919 | -10/Materials | Discovered exit to Materials (range 15) 940 | -10/Materials | Core integrity fell below 50% 971 | -10/Materials | Core integrity fell below 20% 985 | -10/Materials | Destroyed by G-34 Mercenary with Small Laser Last Messages --------------- 00896_ R-06 Scavenger collects Aluminum Leg. 00919_ EXIT=FOUND: MATERIALS 00934_ W-16 Scout sends out distress signal. 00938_ W-16 Scout destroyed. 00943_ S-10 Pest destroyed. 00947_ W-16 Scout sends out distress signal. 00948_ S-10 Pest destroyed. 00952_ G-47 Trooper destroyed. 00958_ Sml. Laser destroyed. 00959_ Lgt. Treads destroyed. 00962_ G-34 Mercenary destroyed. 00962_ EM Pulse Gun destroyed. 00964_ Lgt. Treads destroyed. 00966_ Overheating: System interference. 00966_ Lgt. Cannon temporarily disabled. 00966_ Acquired 14 matter. 00971_ Acquired 10 matter. 00976_ Slammed into G-34 Mercenary. 00981_ ALERT: Hostiles spotted, dispatching reinforcements to Terminal M003. 00984_ Lgt. Cannon destroyed. Map ----- +----------------------------------------------------+ | T ############ ############### !# | | ####### | #??????????# # | | ###??# #??????????# < # | | #??# """" #???######?# %%% ## | | #??# """" #???# ?# #######+##### #? | | #??## """" #???# # #?# *= ## #? | | +?? #???# # #?# """## #? | | #?### #???# """ + #?# """## #? | | ###???##+##### #???# """ # #?# """## #? | | #????? ???# #???# """ # #?# + #? | | #????? ???# #???######## ### """###+### | | #????? ???# ########### ## """# | | #???? !!|???# ## """# | | #???? !|| ??# ## ! # | | #???? !|| ??# ########### | | ##???? ???######## ### #?????????# """ " | | ????? ??????????# #?#######?????????# """ " | | ????? ???????????# #?????????????????# """ " | | ???????###???????????# #?????????????????# | | ?????????????????????# #?????????????????####### | | ?????????????????????# #???????????????????????? | | ?????????????????????# #???????????????????????? | | ?????????????????????#[[=#???????????????????????? | | ????????????######+###*==#???????????????????????? | | ???????? %!s!########+???????????????? | | ??? !!g%@[ a ????????? | | #??????? u%g t????????? | | #????????##+########## %########+####???????????? | | ?????????????????????#u #???????????????????????? | | ?????????????????????# < #???????????????????????? | | ?????????????????????# #???????????????????????? | | ?????????????????????#####???????????????????????? | | ?????????????????????????????????????????????????? | | ?????????????????????????????????????????????????? | | ?????????????????????????????????????????????????? | | ?????????????????????????????????????????????????? | | ?????????????????????????????????????????????????? | | ?????????????????????????????????????????????????? | | ?????????????????????????????????????????????????? | | ?????????????????????????????????????????????????? | | ?????????????????????????????????????????????????? | | ?????????????????????????????????????????????????? | | | | | | | | | | | | | | | | | +----------------------------------------------------+ Best States ------------- Heat Dissipation 25 Energy Generation 10 Energy Capacity 250 Matter Stores 300 Matter Capacity 300 Sight Range 16 Terrain Scan Density 10 Evasion (%) 50 Recoil Reduction 2 Item Schematics ----------------- None Robot Schematics ------------------ None Fabricated ------------ Nothing Alien Tech Used ----------------- None Achievements -------------- None Challenges ------------ None Game ------ Seed FlightMyomerKinecellerator Manual? 0 Play Time 00:11:49 Cumulative 281.4 hours Start 2021.02.11 @ 17:46:30 End 2021.02.11 @ 18:05:41 Sessions 1 Manual Loads 0 Difficulty Rogue Special Mode None Game No. 246 Rogue 246 Adventurer 0 Explorer 0 Win Type - Total 1 Types 0/0/0/1/0/0/0/0/0 Lore% 64 Gallery% 75 Achievement% 58 Wizard Run 0 Options --------- ASCII 0 Keyboard 1 Movement Numpad Keybinds 0 Fullscreen 1 Font 12/Terminus Map View 83x54 Tactical HUD 1 Map Filters NONE Filters NONE Steam 1 RUN: 77b0644c-74d2-48f5-a3c9-142f87259f5f